Cogmind - Beta 9.4 @@@ ROGUE MODE // 2020.02.02 @ 21:22:51 // AFD2019/Pay2Buy Player: sideriver81 Result: Self-destructed Performance ------------- Evolutions (2) 1000 Regions Visited (6) 1200 Robots Destroyed (4) 20 Value Destroyed (170) 170 Prototype IDs (1) 20 Alien Tech Used (0) 0 Bonus (200) 200 TOTAL SCORE: 2610 Bonus ------- Pacifist 200 Cogmind --------- Core Integrity 427/550 Matter 144/300 Energy 92/100 System Corruption 0% Temperature Cool (2) Movement Flying (34) Location -8/Materials Parts ------- > --- POWER (2) -------- (None) > --- PROPULSION (4) --- VTOL Module Cooled VTOL Module > --- UTILITY (3) ------ Propulsion Shielding > --- WEAPON (2) ------- Flail > --- INVENTORY (10) --- (None) Peak State ------------ > --- POWER ------------ Light Deuterium Engine > --- PROPULSION ------- VTOL Module VTOL Module Cooled VTOL Module > --- UTILITY ---------- Propulsion Shielding Improved Light Armor Plating > --- WEAPON ----------- Flail > --- INVENTORY -------- (None) [Rating: 18] Favorites ----------- Power Light Deuterium Engine Engine Light Deuterium Engine Propulsion VTOL Module Flight Unit VTOL Module Utility Propulsion Shielding Protection Propulsion Shielding Weapon Flail Impact Weapon Flail Build | -11 -10 -9 -9 -9 -8 -8 ------- Run | Scr Mat Mat Min Exi Min Mat Slots Evolved 4 | . . 2 . . . 2 Power 1 | . . . . . . 1 Propulsion 2 | . . 1 . . . 1 Utility 1 | . . 1 . . . . Weapon . | . . . . . . . Parts Attached 4 | . . . 1 . . 3 Power . | . . . . . . . Engine . | . . . . . . . Core . | . . . . . . . Reactor . | . . . . . . . Propulsion . | . . . . . . . Treads . | . . . . . . . Leg . | . . . . . . . Wheel . | . . . . . . . Hover . | . . . . . . . Flight . | . . . . . . . Utility 2 | . . . . . . 2 Device . | . . . . . . . Storage . | . . . . . . . Processor . | . . . . . . . Hackware . | . . . . . . . Protection 2 | . . . . . . 2 Artifact . | . . . . . . . Weapon 2 | . . . 1 . . 1 Energy Gun . | . . . . . . . Energy Cannon . | . . . . . . . Ballistic Gun . | . . . . . . . Ballistic Cannon . | . . . . . . . Launcher . | . . . . . . . Special Weapon . | . . . . . . . Impact Weapon 2 | . . . 1 . . 1 Slashing Weapon . | . . . . . . . Piercing Weapon . | . . . . . . . Special Melee Weapon . | . . . . . . . Unidentified Prototypes . | . . . . . . . Parts Lost 4 | . . 1 . . . 3 Power 2 | . . 1 . . . 1 Propulsion 1 | . . . . . . 1 Utility 1 | . . . . . . 1 Weapon . | . . . . . . . Highest Loss Streak 3 | . . 1 . . . 3 Average Slot Usage (%) 59 | . 71 59 56 55 55 57 Engine 9 | . 14 7 7 11 11 9 Flight 23 | . 28 22 22 22 22 24 Protection 18 | . 14 18 22 22 22 15 Impact Weapon 7 | . 14 11 4 . . 8 Naked Turns . | . . . . . . . Heaviest Build 11 | 6 6 9 9 9 9 11 Greatest Support 15 | 10 10 10 10 10 10 15 Greatest Overweight (x) . | . . . . . . . Average Overweight (x) . | . . . . . . . Largest Inventory Capacity 10 | . 10 10 10 10 10 10 Average Capacity 10 | . 10 10 10 10 10 10 Most Carried 1 | . . . 1 1 1 1 Average Carried . | . . . . 1 1 . Final Capacity 10 | 10 10 10 10 10 10 10 Final Carried 1 | . . . 1 1 1 . Class Distribution -------------------- 70% | Mutant 30% | Sprinter Dominant Class ---------------- Mutant | -10/Materials Mutant | -9/Materials Mutant | -9/Mines Mutant | -9/Exiles Mutant | -8/Mines Sprinter | -8/Materials Resources | -11 -10 -9 -9 -9 -8 -8 ----------- Run | Scr Mat Mat Min Exi Min Mat Matter Collected 64 | . . 54 . . . 10 Remotely . | . . . . . . . Salvage Created 94 | . . 72 4 . . 18 Parts . | . . . . . . . Haulers Intercepted . | . . . . . . . Recyclers Shooed . | . . . . . . . Parts Field Recycled . | . . . . . . . Retrieved Matter . | . . . . . . . Parts Self-Destructed . | . . . . . . . Prevented . | . . . . . . . Kills | -11 -10 -9 -9 -9 -8 -8 ------- Run | Scr Mat Mat Min Exi Min Mat Combat Hostiles Destroyed 4 | . . 4 . . . . Melee 3 | . . 3 . . . . Classes Destroyed 1 | . . 1 . . . . Swarmer 4 | . . 4 . . . . Best Kill Streak 4 | . . 4 . . . . Combat Bots Only 4 | . . 4 . . . . Max Kills in Single Turn 1 | . . 1 . . . . Gunslinging . | . . . . . . . Exploded . | . . . . . . . Melee 1 | . . 1 . . . . Uniques/NPCs Destroyed . | . . . . . . . Combat | -11 -10 -9 -9 -9 -8 -8 -------- Run | Scr Mat Mat Min Exi Min Mat Damage Taken 538 | . 24 143 . . . 371 Core 167 | . . 44 . . . 123 Absorbed by Shields . | . . . . . . . Core Remaining (%) 96 | 100 100 . . . 89 . Volleys Fired . | . . . . . . . Largest . | . . . . . . . Hottest . | . . . . . . . Shots Fired . | . . . . . . . Gun . | . . . . . . . Cannon . | . . . . . . . Launcher . | . . . . . . . Special . | . . . . . . . Kinetic . | . . . . . . . Thermal . | . . . . . . . Explosive . | . . . . . . . Electromagnetic . | . . . . . . . Robot Hit Streak . | . . . . . . . Robot Miss Streak . | . . . . . . . Penetration Max . | . . . . . . . Secondary Targets . | . . . . . . . Shots Hit Robots 8 | . 1 5 . . . 2 Core Hits 3 | . . 3 . . . . Critical Hits . | . . . . . . . Critical Kills . | . . . . . . . Critical Parts Destroyed . | . . . . . . . Melee Attacks 29 | . 2 10 2 . . 15 Impact 29 | . 2 10 2 . . 15 Slashing . | . . . . . . . Piercing . | . . . . . . . Sneak Attacks 2 | . 1 . . . . 1 Combat Hostiles . | . . . . . . . Follow-up Attacks . | . . . . . . . Damage Inflicted 274 | . 81 126 . . . 67 Guns . | . . . . . . . Cannons . | . . . . . . . Explosions . | . . . . . . . Melee 274 | . 81 126 . . . 67 Ramming . | . . . . . . . Kinetic . | . . . . . . . Thermal . | . . . . . . . Explosive . | . . . . . . . Electromagnetic . | . . . . . . . Impact 274 | . 81 126 . . . 67 Slashing . | . . . . . . . Piercing . | . . . . . . . Highest Corruption 1 | . 1 . . . . . Average Corruption 1 | . 1 . . . . . Corruption Purged . | . . . . . . . Effects 1 | . 1 . . . . . Energy Discharges 1 | . 1 . . . . . Overload Shots . | . . . . . . . Overflow Damage 10 | . . 2 . . . 8 Projectiles . | . . . . . . . Explosions . | . . . . . . . Melee 10 | . . 2 . . . 8 Knockbacks . | . . . . . . . Impact . | . . . . . . . Kinetic . | . . . . . . . Secondary . | . . . . . . . Self-Inflicted Damage . | . . . . . . . Shots . | . . . . . . . Rammed . | . . . . . . . Targets Rammed . | . . . . . . . Kicked . | . . . . . . . Crushed . | . . . . . . . Highest Temperature 9 | . . . . . . 9 Average Temperature 6 | . . . . . . 6 Received Heat Transfer 150 | . 12 21 . . . 117 Siege Activations . | . . . . . . . Robots Corrupted . | . . . . . . . Combat Hostiles . | . . . . . . . Parts Fried . | . . . . . . . Impact Corruptions 2 | . . 1 . . . 1 Robots Melted . | . . . . . . . Combat Hostiles . | . . . . . . . Parts Melted . | . . . . . . . Heat Transferred . | . . . . . . . Parts Sabotaged . | . . . . . . . Parts Stolen . | . . . . . . . Parts Stripped . | . . . . . . . Power Chain Reactions . | . . . . . . . Missiles Intercepted . | . . . . . . . Alert | -11 -10 -9 -9 -9 -8 -8 ------- Run | Scr Mat Mat Min Exi Min Mat Peak Influence 248 | . 49 135 67 . . 248 Average Influence 90 | . 24 73 54 . . 147 Maximum Alert Level 1 | . . . . . . 1 Low Security (%) 93 | . 100 100 100 . 100 85 Level 1 6 | . . . . . . 14 Level 2 . | . . . . . . . Level 3 . | . . . . . . . Level 4 . | . . . . . . . Level 5 . | . . . . . . . High Security . | . . . . . . . Max Security . | . . . . . . . Squads Dispatched 4 | . . 2 . . . 2 Investigation 1 | . . 1 . . . . Extermination . | . . . . . . . Reinforcement 2 | . . 1 . . . 1 Assault . | . . . . . . . Garrison 1 | . . . . . . 1 Intercept . | . . . . . . . Construction Impeded . | . . . . . . . Haulers Reinforced . | . . . . . . . Stealth | -11 -10 -9 -9 -9 -8 -8 --------- Run | Scr Mat Mat Min Exi Min Mat Distress Signals 3 | . . . . . . 3 Communications Jammed . | . . . . . . . Distress Signals . | . . . . . . . Times Spotted 42 | . 7 9 . . . 26 Peak Tracking Total 17 | . 6 6 . . . 17 Tactical Retreats 5 | . 1 . . . . 4 Traps | -11 -10 -9 -9 -9 -8 -8 ------- Run | Scr Mat Mat Min Exi Min Mat Traps Triggered 1 | . 1 . . . . . Indirectly . | . . . . . . . Trap Hack Attempts . | . . . . . . . Triggered . | . . . . . . . Disarmed . | . . . . . . . Reprogrammed . | . . . . . . . Reused . | . . . . . . . Traps Extracted . | . . . . . . . Installed . | . . . . . . . Triggered . | . . . . . . . Machines | -11 -10 -9 -9 -9 -8 -8 ---------- Run | Scr Mat Mat Min Exi Min Mat Machines Disabled 13 | . . 1 1 . . 11 Max in Single Turn 1 | . . 1 1 . . 1 Machines Sabotaged . | . . . . . . . Garrisons Compromised . | . . . . . . . Overloaded Fab Kills . | . . . . . . . Fab Network Shutdowns . | . . . . . . . Hacking | -11 -10 -9 -9 -9 -8 -8 --------- Run | Scr Mat Mat Min Exi Min Mat Machines Accessed 11 | . 3 2 . 1 . 5 Terminals 10 | . 3 2 . . . 5 Fabricators . | . . . . . . . Repair Stations . | . . . . . . . Recycling Units . | . . . . . . . Scanalyzers . | . . . . . . . Garrison Access . | . . . . . . . Total Hacks 26 | . 10 5 . 1 . 10 Successful 12 | . 5 2 . 1 . 4 Failed 14 | . 5 3 . . . 6 Catastrophic 1 | . 1 . . . . . Database Lockouts . | . . . . . . . Manual 23 | . 10 5 . . . 8 Terminals 25 | . 10 5 . . . 10 Fabricators . | . . . . . . . Repair Stations . | . . . . . . . Recycling Units . | . . . . . . . Scanalyzers . | . . . . . . . Garrison Access . | . . . . . . . Terminal Hacks 7 | . 3 1 . 1 . 2 Record 1 | . . . . 1 . . Locate Traps 6 | . 3 1 . . . 2 Fabricator Hacks . | . . . . . . . Repair Station Hacks . | . . . . . . . Recycling Unit Hacks . | . . . . . . . Scanalyzer . | . . . . . . . Garrison Access Hacks . | . . . . . . . Unauthorized Hacks 17 | . 5 3 . . . 9 Terminals 5 | . 2 1 . . . 2 Track 1 | . 1 . . . . . Assimilate 1 | . . . . . . 1 Botnet 2 | . 1 . . . . 1 Sabotage 1 | . . 1 . . . . Fabricators . | . . . . . . . Repair Stations . | . . . . . . . Recycling Units . | . . . . . . . Scanalyzers . | . . . . . . . Garrison Access . | . . . . . . . Data Cores Recovered . | . . . . . . . Used . | . . . . . . . Hacking Detections 10 | . 3 2 . . . 5 Full Trace Events . | . . . . . . . Feedback Events . | . . . . . . . Feedback Blocked . | . . . . . . . Robot Schematics Acquired . | . . . . . . . Robots Built . | . . . . . . . Matter . | . . . . . . . Time . | . . . . . . . Total Robot Build Rating . | . . . . . . . Part Schematics Acquired . | . . . . . . . Parts Built . | . . . . . . . Matter . | . . . . . . . Time . | . . . . . . . Total Part Build Rating . | . . . . . . . Parts Repaired . | . . . . . . . Time . | . . . . . . . Parts Recycled . | . . . . . . . Recycled Matter . | . . . . . . . Retrieved Matter . | . . . . . . . Retrieved Components . | . . . . . . . Parts Scanalyzed . | . . . . . . . Part Schematics Acquired . | . . . . . . . Parts Damaged . | . . . . . . . Bothacking | -11 -10 -9 -9 -9 -8 -8 ------------ Run | Scr Mat Mat Min Exi Min Mat Used RIF Installer . | . . . . . . . Robots Hacked . | . . . . . . . Non-combat . | . . . . . . . Combat . | . . . . . . . Robot Hacks Applied . | . . . . . . . Relay Couplers Released . | . . . . . . . Robots Rewired . | . . . . . . . Allies Hacked . | . . . . . . . Hacks Repelled . | . . . . . . . Allies | -11 -10 -9 -9 -9 -8 -8 -------- Run | Scr Mat Mat Min Exi Min Mat Total Allies . | . . . . . . . Largest Group . | . . . . . . . Highest-Rated Group . | . . . . . . . Highest-Rated Ally . | . . . . . . . Total Orders . | . . . . . . . Ally Attacks . | . . . . . . . Total Damage . | . . . . . . . Kills . | . . . . . . . Allies Corrupted . | . . . . . . . Allies Melted . | . . . . . . . Intel | -11 -10 -9 -9 -9 -8 -8 ------- Run | Scr Mat Mat Min Exi Min Mat Robot Analysis Total . | . . . . . . . Derelict Logs Recovered . | . . . . . . . Drone Launches . | . . . . . . . Drone Recoveries . | . . . . . . . Exploration | -11 -10 -9 -9 -9 -8 -8 ------------- Run | Scr Mat Mat Min Exi Min Mat Turns Passed 414 | . 57 63 73 47 18 156 Spaces Moved 941 | 1 140 96 179 127 48 350 Core . | . . . . . . . Treads . | . . . . . . . Legs . | . . . . . . . Wheels . | . . . . . . . Hover . | . . . . . . . Flight 941 | 1 140 96 179 127 48 350 Fastest Speed 32 | 37 37 37 37 37 37 32 Average Speed 35 | 37 37 37 37 37 37 32 Slowest Speed 37 | 37 37 37 37 37 37 37 Overloaded Moves . | . . . . . . . Propulsion Burnouts . | . . . . . . . Robots Hopped 17 | . 2 2 . . . 13 Cave-ins Triggered . | . . . . . . . Exploration Rate (%) 29 | 2 41 17 40 48 23 38 Regions Visited 6 Branch Regions 3 Pre-discovered Areas . | . . . . . . . Known Exits Taken . | . . . . . . . Unknown Exits Taken 6 | 1 1 1 1 1 1 . Scrap Searched . | . . . . . . . Spaces Dug 1 | . 1 . . . . . Terrain Destroyed 1 | . 1 . . . . . Melee 1 | . 1 . . . . . Projectile . | . . . . . . . AOE . | . . . . . . . Actions | -11 -10 -9 -9 -9 -8 -8 --------- Run | Scr Mat Mat Min Exi Min Mat Total 956 | . 139 105 183 126 47 356 Wait 2 | . . 2 . . . . Move 905 | . 135 92 178 126 47 327 Hop 13 | . 2 1 . . . 10 Pick Up . | . . . . . . . Fast Attach 1 | . . . . . . 1 Attach 3 | . . . 1 . . 2 Detach 3 | . . . 2 . . 1 Swap . | . . . . . . . Drop . | . . . . . . . Fire . | . . . . . . . Melee 29 | . 2 10 2 . . 15 Ram . | . . . . . . . Kick . | . . . . . . . Crush . | . . . . . . . Escape Stasis . | . . . . . . . Rewire . | . . . . . . . Trap . | . . . . . . . Miscellaneous . | . . . . . . . Route ------- -11/Scrapyard -10/Materials -9/Materials -9/Mines (discovered 2 exits: *Mat / *Exi) -9/Exiles (discovered 2 exits: [*Min x2]) -8/Mines -8/Materials History --------- Turn | Location | Event 1 | -11/Scrapyard | Discovered new exit (range 0) 1 | -11/Scrapyard | Entered Materials 55 | -10/Materials | Discovered new exit (range 9) 58 | -10/Materials | Entered another Materials area 58 | -9/Materials | Evolved 2 slots: Propulsion x1, Utility x1 108 | -9/Materials | Discovered new exit (range 16) 121 | -9/Materials | Entered Mines 128 | -9/Mines | Discovered new exit (range 15) 193 | -9/Mines | Deemed a non-threat by the Exiles lab entrance 193 | -9/Mines | Discovered new exit (range 5) 194 | -9/Mines | Entered Exiles 194 | -9/Exiles | Found Exiles lab abandoned 199 | -9/Exiles | Discovered new exit (range 15) 237 | -9/Exiles | Discovered new exit (range 14) 241 | -9/Exiles | Entered Mines 257 | -8/Mines | Discovered new exit (range 6) 259 | -8/Mines | Entered Materials 259 | -8/Materials | Evolved 2 slots: Power x1, Propulsion x1 310 | -8/Materials | Garrison activated, responded to threat 415 | -8/Materials | Self-destructed Last Messages --------------- 00388_ Connecting with Terminal... >>Traps(Locate) Found 6 traps in 1 array: 6x Alarm Trap Map updated. 00392_ O-16 Technician: "IFF HANDSHAKE FAILED. SECURING TERMINAL." 00394_ Connecting with Terminal... >>Trojan(Assimilate) Trojan loaded successfully. Testing... System interface override in place. 00396_ Destroyed Datajack. 00396_ O-16 Technician system corrupted by crushing effect. 00401_ ALERT: Hostiles spotted, dispatching reinforcements to Terminal M003. 00404_ Penetrated by Slug. 00404_ Imp. Light Armor Plating destroyed. 00407_ Penetrated by Slug. 00411_ VTOL Module destroyed. 00413_ Lgt. Deuterium Engine destroyed. Map ----- +----------------------------------------------------+ | # """ # ########## """ #???# #???? | | # # #????????# """ #???# #???? | | ########## #????????# """ #???# #???? | | #????????# #???# #???? | | #????????# """ #???# #???? | | #????????# """ #???# #???? | | ####????????# """ #???# #???? | | #?#########?# ????# #???? | | #?# ??########?????# #???? | | #?# #?????????####+###### | | #?# """"""" #?????????# # | | ^^^^^ ^### """"""" #?????????# "" """ # | | + """"""" #?????????# "Y "" # | | ########### """"""" #?????????# """ """ # | | #?????????# """"""" #?????????# # | | ##?????????# #?????????# # | | #??????????#######/###?????????# # | | #???????????????? ???????????# # | | #??????????????? ??????????########### | | ####???????????? ???????????????????? | | #???????????? ????????????????????? | | " #???????????# #???????????????????? | | " #???????????## ###??????????????????? | | " #????????????# ## ######????????????? | | #????????????# # #????????????? | | " #????????????+ gg"T"@ #????????????? | | " #????????????# # #????????????? | | " #????????????# #####+###????????????? | | #???????????## ##??# #??????????????? | | ################ #??# #??????????????? | | #??# #??????????????? | | #### #??????????????? | | #??????????????? | | #####+########## #### #??????????????? | | # ???????#######??# #??????????????? | | # #??????????????# #??????????????? | | # #??????????????# #??????????????? | | # #??????????????# #??????????????? | | # "T" #?????????????? ??????????????? | | # #?????????????? ??????????????? | | ########?????????????? ??????????????? | | #?????????????????????###??????????????? | | #??????????????????????????????????????? | | ###??????????????????????????????????????? | | ?????????????????????????????????????????? | | ?????????????????????????????????????????? | | ?????????????????????????????????????????? | | ?????????????????????????????????????????? | | ?????????????????????????????????????????? | | ?????????????????????????????????????????? | +----------------------------------------------------+ Best States ------------- Heat Dissipation 31 Energy Generation 14 Energy Capacity 140 Matter Stores 159 Matter Capacity 300 Sight Range 16 Terrain Scan Density 10 Armor Coverage 150 Propulsion Shielding 33 Evasion (%) 63 Item Schematics ----------------- None Robot Schematics ------------------ None Fabricated ------------ Nothing Alien Tech Used ----------------- None Achievements -------------- None Challenges ------------ None Cogshop Purchases (8) ----------------------- VTOL Module (1049) Propulsion Shielding (599) VTOL Module (1049) Lgt. Ion Engine (599) Flail (629) Imp. Light Armor Plating (799) Lgt. Deuterium Engine (863) Cld. VTOL Module (1486) Game ------ Seed MatterMatterDoublenader Manual? 0 Play Time 00:22:46 Cumulative 294.7 hours Start 2020.02.02 @ 21:02:20 End 2020.02.02 @ 21:22:51 Sessions 1 Manual Loads 0 Difficulty Rogue Special Mode AFD2019/Pay2Buy Game No. 110 Rogue 32 Adventurer 48 Explorer 30 Win Type - Total 45 Types 29/5/4/2/2/1/2 Lore% 98 Gallery% 100 Achievement% 87 Wizard Run 0 Options --------- ASCII 0 Keyboard 0 Movement Numpad Keybinds 1 Fullscreen 0 Font 18/Terminus Map View 76x50 Tactical HUD 1 Map Filters NONE Filters NONE Steam 1 RUN: fbc57eea-bdc1-491c-aaeb-9044f17c1642